[Event "*** SCC Grand Prix: Titled Tuesday Blitz"]
[Site "Chess.com"]
[Date "2020.08.04"]
[Round "9"]
[White "LubovMarkelova"]
[Black "Lucas_Tomiello"]
[Result "0-1"]
[WhiteElo "2263"]
[BlackElo "2468"]
[TimeControl "180+1"]
[EndTime "15:26:55 PDT"]
[Termination "Lucas_Tomiello won by resignation"]

1. d4 {[%clk 0:03:00.9]} 1... Nf6 {[%clk 0:02:58.1]} 2. Nf3 {[%clk 0:03:01.3]}
2... g6 {[%clk 0:02:56.1]} 3. Bg5 {[%clk 0:03:01]} 3... Bg7 {[%clk 0:02:56.1]}
4. c3 {[%clk 0:03:01.2]} 4... O-O {[%clk 0:02:56.2]} 5. Nbd2 {[%clk 0:03:01.7]}
5... d5 {[%clk 0:02:56.5]} 6. e3 {[%clk 0:03:01.5]} 6... h6 {[%clk 0:02:52.2]}
7. Bh4 {[%clk 0:03:00.3]} 7... b6 {[%clk 0:02:51.2]} 8. Be2 {[%clk 0:02:59.8]}
8... c5 {[%clk 0:02:51.6]} 9. O-O {[%clk 0:02:59]} 9... Nbd7 {[%clk 0:02:50.4]}
10. a4 {[%clk 0:02:58.6]} 10... a6 {[%clk 0:02:44.2]} 11. Re1 {[%clk 0:02:56.9]}
11... Bb7 {[%clk 0:02:43.6]} 12. Qc2 {[%clk 0:02:56.3]} 12... Re8 {[%clk
0:02:39.2]} 13. Rad1 {[%clk 0:02:55.2]} 13... Qc8 {[%clk 0:02:25.7]} 14. Rc1
{[%clk 0:02:42.4]} 14... g5 {[%clk 0:02:12.2]} 15. Bg3 {[%clk 0:02:41.5]} 15...
Ne4 {[%clk 0:02:11.7]} 16. Nxe4 {[%clk 0:02:36.3]} 16... dxe4 {[%clk 0:02:12.6]}
17. Nd2 {[%clk 0:02:36.4]} 17... e5 {[%clk 0:01:58.6]} 18. dxc5 {[%clk
0:02:03.2]} 18... Nxc5 {[%clk 0:01:48.7]} 19. b4 {[%clk 0:02:02.5]} 19... Nd3
{[%clk 0:01:36.1]} 20. Bxd3 {[%clk 0:02:01.1]} 20... exd3 {[%clk 0:01:37]} 21.
Qxd3 {[%clk 0:02:01.4]} 21... Rd8 {[%clk 0:01:35.7]} 22. Qe2 {[%clk 0:01:52.1]}
22... Qc6 {[%clk 0:01:28]} 23. f3 {[%clk 0:01:49.2]} 23... Qxa4 {[%clk
0:01:23.9]} 24. Nc4 {[%clk 0:01:48.8]} 24... Qb5 {[%clk 0:01:22.1]} 25. Nxe5
{[%clk 0:01:42.4]} 25... Qxe2 {[%clk 0:01:14.1]} 26. Rxe2 {[%clk 0:01:41.4]}
26... Rac8 {[%clk 0:01:14.2]} 27. e4 {[%clk 0:01:10.1]} 27... b5 {[%clk
0:01:08.1]} 28. Rec2 {[%clk 0:00:51.2]} 28... h5 {[%clk 0:00:53]} 29. c4 {[%clk
0:00:23.8]} 29... h4 {[%clk 0:00:50.6]} 30. Ng4 {[%clk 0:00:19.9]} 30... hxg3
{[%clk 0:00:49.9]} 31. hxg3 {[%clk 0:00:20.8]} 31... bxc4 {[%clk 0:00:45.1]} 32.
Rxc4 {[%clk 0:00:20.8]} 32... Rxc4 {[%clk 0:00:42.3]} 33. Rxc4 {[%clk
0:00:20.9]} 33... Rd4 {[%clk 0:00:42.4]} 34. Rc5 {[%clk 0:00:16.7]} 34... Rxb4
{[%clk 0:00:37.6]} 35. Rxg5 {[%clk 0:00:16.5]} 35... Kf8 {[%clk 0:00:33.5]} 36.
Rf5 {[%clk 0:00:13.4]} 36... Bc8 {[%clk 0:00:30.2]} 37. Rc5 {[%clk 0:00:09.9]}
37... Bxg4 {[%clk 0:00:29.8]} 0-1

[Event "*** SCC Grand Prix: Titled Tuesday Blitz"]
[Site "Chess.com"]
[Date "2020.08.04"]
[Round "9"]
[White "keepitcool9499"]
[Black "Robert_Chessmood"]
[Result "1-0"]
[WhiteElo "2661"]
[BlackElo "2930"]
[TimeControl "180+1"]
[EndTime "15:26:57 PDT"]
[Termination "keepitcool9499 won by checkmate"]

1. d4 {[%clk 0:03:00.9]} 1... d5 {[%clk 0:03:00.3]} 2. c4 {[%clk 0:02:59.3]}
2... c6 {[%clk 0:03:00.8]} 3. cxd5 {[%clk 0:02:55.5]} 3... cxd5 {[%clk
0:03:01.7]} 4. Nc3 {[%clk 0:02:55.9]} 4... Nc6 {[%clk 0:03:01.4]} 5. Bf4 {[%clk
0:02:55.6]} 5... e5 {[%clk 0:03:01.6]} 6. dxe5 {[%clk 0:02:54.6]} 6... d4 {[%clk
0:03:02.5]} 7. Ne4 {[%clk 0:02:19]} 7... Qb6 {[%clk 0:03:01.7]} 8. Nf3 {[%clk
0:02:14.3]} 8... Qxb2 {[%clk 0:02:58.1]} 9. Qb1 {[%clk 0:02:02.9]} 9... Bb4+
{[%clk 0:02:51]} 10. Bd2 {[%clk 0:01:58.4]} 10... Bxd2+ {[%clk 0:02:51]} 11.
Nfxd2 {[%clk 0:01:54.4]} 11... Qxb1+ {[%clk 0:02:49.4]} 12. Rxb1 {[%clk
0:01:54.9]} 12... Nxe5 {[%clk 0:02:49.4]} 13. Nd6+ {[%clk 0:01:47.4]} 13... Kf8
{[%clk 0:02:39.9]} 14. f4 {[%clk 0:01:20.1]} 14... Ng4 {[%clk 0:02:32.8]} 15.
Nf3 {[%clk 0:01:13.5]} 15... N8f6 {[%clk 0:02:21.3]} 16. Nxd4 {[%clk 0:01:06.8]}
16... g6 {[%clk 0:02:17.5]} 17. e4 {[%clk 0:01:04.4]} 17... Kg7 {[%clk
0:02:14.7]} 18. e5 {[%clk 0:01:03.7]} 18... Nd5 {[%clk 0:02:11.3]} 19. Bc4
{[%clk 0:01:02.6]} 19... Nxf4 {[%clk 0:01:59.6]} 20. O-O {[%clk 0:00:59.4]}
20... g5 {[%clk 0:01:45]} 21. g3 {[%clk 0:00:49.6]} 21... Nh3+ {[%clk
0:01:43.7]} 22. Kh1 {[%clk 0:00:49.2]} 22... Nxe5 {[%clk 0:01:39.5]} 23. Bxf7
{[%clk 0:00:47.2]} 23... Rf8 {[%clk 0:01:28.3]} 24. Be6 {[%clk 0:00:46.1]} 24...
Bd7 {[%clk 0:00:42.9]} 25. N6f5+ {[%clk 0:00:24.7]} 25... Kg6 {[%clk 0:00:34.7]}
26. Ne7+ {[%clk 0:00:22.3]} 26... Kh5 {[%clk 0:00:32.3]} 27. Bxd7 {[%clk
0:00:14.5]} 27... Nxd7 {[%clk 0:00:31.1]} 28. Kg2 {[%clk 0:00:14.6]} 28... g4
{[%clk 0:00:17.2]} 29. Rb5+ {[%clk 0:00:14.1]} 29... Ng5 {[%clk 0:00:17.6]} 30.
Ne6 {[%clk 0:00:12.2]} 30... h6 {[%clk 0:00:09.7]} 31. Ng7# {[%clk 0:00:09.7]}
1-0

[Event "*** SCC Grand Prix: Titled Tuesday Blitz"]
[Site "Chess.com"]
[Date "2020.08.04"]
[Round "9"]
[White "Sekar24"]
[Black "ahachess"]
[Result "1-0"]
[WhiteElo "2470"]
[BlackElo "2291"]
[TimeControl "180+1"]
[EndTime "15:26:59 PDT"]
[Termination "Sekar24 won by checkmate"]

1. e4 {[%clk 0:02:59.6]} 1... c6 {[%clk 0:02:58.8]} 2. Nf3 {[%clk 0:02:59.6]}
2... d5 {[%clk 0:02:59.1]} 3. Nc3 {[%clk 0:03:00.5]} 3... Bg4 {[%clk 0:02:58.8]}
4. h3 {[%clk 0:03:00]} 4... Bxf3 {[%clk 0:02:59]} 5. Qxf3 {[%clk 0:03:00.9]}
5... e6 {[%clk 0:02:59.1]} 6. Be2 {[%clk 0:03:01.2]} 6... Nf6 {[%clk 0:02:58.6]}
7. O-O {[%clk 0:03:01.1]} 7... Bb4 {[%clk 0:02:53.2]} 8. d3 {[%clk 0:02:49.9]}
8... O-O {[%clk 0:02:47.3]} 9. Qg3 {[%clk 0:02:34.8]} 9... Bxc3 {[%clk 0:02:33]}
10. bxc3 {[%clk 0:02:34.2]} 10... dxe4 {[%clk 0:02:29]} 11. Bh6 {[%clk
0:02:30.4]} 11... Ne8 {[%clk 0:02:25.2]} 12. dxe4 {[%clk 0:02:29]} 12... f6
{[%clk 0:01:56.9]} 13. Bc4 {[%clk 0:02:22.8]} 13... Qe7 {[%clk 0:01:54.9]} 14.
Rfd1 {[%clk 0:02:14.8]} 14... b5 {[%clk 0:01:52.2]} 15. Bb3 {[%clk 0:02:10]}
15... Nd7 {[%clk 0:01:28.5]} 16. e5 {[%clk 0:01:39.9]} 16... Nxe5 {[%clk
0:01:09.4]} 17. Re1 {[%clk 0:01:37.4]} 17... Kh8 {[%clk 0:00:41.2]} 18. Bc1
{[%clk 0:01:25.7]} 18... a5 {[%clk 0:00:27.4]} 19. a4 {[%clk 0:01:24.6]} 19...
b4 {[%clk 0:00:19.2]} 20. cxb4 {[%clk 0:01:21.3]} 20... axb4 {[%clk 0:00:18.4]}
21. f4 {[%clk 0:01:21]} 21... Ng6 {[%clk 0:00:13.8]} 22. Rxe6 {[%clk 0:01:17.2]}
22... Qc5+ {[%clk 0:00:14]} 23. Kh2 {[%clk 0:01:17]} 23... Nc7 {[%clk
0:00:14.1]} 24. Re4 {[%clk 0:01:03.8]} 24... Nd5 {[%clk 0:00:14]} 25. Bb2 {[%clk
0:00:59.1]} 25... Rae8 {[%clk 0:00:13.5]} 26. Rae1 {[%clk 0:00:58.4]} 26... Rxe4
{[%clk 0:00:14.3]} 27. Rxe4 {[%clk 0:00:59.3]} 27... Nc3 {[%clk 0:00:11.5]} 28.
Rc4 {[%clk 0:00:55.9]} 28... Qd6 {[%clk 0:00:11.2]} 29. Bxc3 {[%clk 0:00:52.2]}
29... bxc3 {[%clk 0:00:11.3]} 30. Rxc3 {[%clk 0:00:51.7]} 30... Qxf4 {[%clk
0:00:11.4]} 31. Qxf4 {[%clk 0:00:51.5]} 31... Nxf4 {[%clk 0:00:12.3]} 32. Rxc6
{[%clk 0:00:51.9]} 32... Ra8 {[%clk 0:00:06]} 33. a5 {[%clk 0:00:50.3]} 33...
Ne2 {[%clk 0:00:06.1]} 34. Bd5 {[%clk 0:00:45.4]} 34... Rxa5 {[%clk 0:00:03.8]}
35. Rc8# {[%clk 0:00:44.3]} 1-0

[Event "*** SCC Grand Prix: Titled Tuesday Blitz"]
[Site "Chess.com"]
[Date "2020.08.04"]
[Round "9"]
[White "JMatias"]
[Black "DanielRensch"]
[Result "0-1"]
[WhiteElo "2403"]
[BlackElo "2555"]
[TimeControl "180+1"]
[EndTime "15:27:07 PDT"]
[Termination "DanielRensch won on time"]

1. e4 {[%clk 0:03:00.9]} 1... c5 {[%clk 0:02:58.8]} 2. Nf3 {[%clk 0:03:00.9]}
2... Nc6 {[%clk 0:02:58.4]} 3. Bb5 {[%clk 0:03:01.1]} 3... g6 {[%clk 0:02:58.1]}
4. Bxc6 {[%clk 0:03:00.5]} 4... bxc6 {[%clk 0:02:59]} 5. O-O {[%clk 0:02:59.6]}
5... Bg7 {[%clk 0:02:59.2]} 6. c3 {[%clk 0:02:55.9]} 6... d6 {[%clk 0:02:59.3]}
7. d4 {[%clk 0:02:56]} 7... cxd4 {[%clk 0:03:00.2]} 8. cxd4 {[%clk 0:02:55.8]}
8... Nf6 {[%clk 0:03:00.7]} 9. Nc3 {[%clk 0:02:54.9]} 9... O-O {[%clk
0:03:00.6]} 10. h3 {[%clk 0:02:54.6]} 10... a5 {[%clk 0:03:00]} 11. Be3 {[%clk
0:02:33.6]} 11... Ba6 {[%clk 0:02:52.2]} 12. Re1 {[%clk 0:02:33.3]} 12... Nd7
{[%clk 0:02:51.1]} 13. Qd2 {[%clk 0:02:24.3]} 13... Rb8 {[%clk 0:02:44.2]} 14.
b3 {[%clk 0:02:22.9]} 14... Re8 {[%clk 0:02:44.6]} 15. Bh6 {[%clk 0:02:19.6]}
15... Bh8 {[%clk 0:02:44.6]} 16. Rac1 {[%clk 0:02:19]} 16... c5 {[%clk
0:02:39.9]} 17. Red1 {[%clk 0:01:33.1]} 17... Rc8 {[%clk 0:02:22.7]} 18. Nd5
{[%clk 0:01:18.4]} 18... cxd4 {[%clk 0:02:08.7]} 19. Rxc8 {[%clk 0:01:16.4]}
19... Qxc8 {[%clk 0:02:08.5]} 20. Nxd4 {[%clk 0:01:14.1]} 20... Nc5 {[%clk
0:01:54.5]} 21. f3 {[%clk 0:01:08.4]} 21... Ne6 {[%clk 0:01:52.9]} 22. Nxe6
{[%clk 0:01:02.6]} 22... fxe6 {[%clk 0:01:53.8]} 23. Ne3 {[%clk 0:00:57.4]}
23... Qc5 {[%clk 0:01:49.5]} 24. Kh1 {[%clk 0:00:56.9]} 24... Rc8 {[%clk
0:01:47.7]} 25. Ng4 {[%clk 0:00:55.9]} 25... Qc2 {[%clk 0:01:43.8]} 26. Bg5
{[%clk 0:00:46.2]} 26... Qxd2 {[%clk 0:01:38.4]} 27. Rxd2 {[%clk 0:00:41.4]}
27... Kf7 {[%clk 0:01:38]} 28. Nh6+ {[%clk 0:00:40.6]} 28... Ke8 {[%clk
0:01:38]} 29. Be3 {[%clk 0:00:37.5]} 29... Be5 {[%clk 0:01:31.4]} 30. g4 {[%clk
0:00:27.3]} 30... Rc1+ {[%clk 0:01:26.3]} 31. Kg2 {[%clk 0:00:27.2]} 31... Ra1
{[%clk 0:01:24.6]} 32. f4 {[%clk 0:00:26.9]} 32... Bg7 {[%clk 0:01:21.7]} 33. f5
{[%clk 0:00:26.4]} 33... Bb7 {[%clk 0:01:19.7]} 34. Kf3 {[%clk 0:00:26.3]} 34...
gxf5 {[%clk 0:01:18.1]} 35. gxf5 {[%clk 0:00:27.2]} 35... Bxh6 {[%clk
0:01:18.3]} 36. Bxh6 {[%clk 0:00:26.6]} 36... exf5 {[%clk 0:01:18.8]} 37. Kf4
{[%clk 0:00:25.2]} 37... Rf1+ {[%clk 0:01:16.2]} 38. Ke3 {[%clk 0:00:20.9]}
38... fxe4 {[%clk 0:01:15.3]} 39. Rc2 {[%clk 0:00:19.7]} 39... Rf3+ {[%clk
0:01:14.1]} 40. Ke2 {[%clk 0:00:17.1]} 40... Rxh3 {[%clk 0:01:13.2]} 41. Bf4
{[%clk 0:00:17]} 41... Ba6+ {[%clk 0:01:12.2]} 42. Kd2 {[%clk 0:00:15.6]} 42...
Kd7 {[%clk 0:01:09.5]} 43. Rc1 {[%clk 0:00:09]} 43... Rf3 {[%clk 0:01:09]} 44.
Be3 {[%clk 0:00:08.8]} 44... h5 {[%clk 0:01:07.8]} 45. Rh1 {[%clk 0:00:08.7]}
45... Rf5 {[%clk 0:01:07.5]} 46. Rg1 {[%clk 0:00:08]} 46... Rd5+ {[%clk
0:01:07.1]} 47. Ke1 {[%clk 0:00:07.2]} 47... h4 {[%clk 0:01:06.6]} 48. Rg7
{[%clk 0:00:05.5]} 48... Rh5 {[%clk 0:00:55.4]} 49. Bg5 {[%clk 0:00:03.3]} 49...
h3 {[%clk 0:00:55.7]} 50. Rxe7+ {[%clk 0:00:03.4]} 50... Kc6 {[%clk 0:00:55.9]}
0-1

[Event "*** SCC Grand Prix: Titled Tuesday Blitz"]
[Site "Chess.com"]
[Date "2020.08.04"]
[Round "9"]
[White "Firouzja2003"]
[Black "1stSecond"]
[Result "1-0"]
[WhiteElo "3023"]
[BlackElo "2861"]
[TimeControl "180+1"]
[EndTime "15:27:09 PDT"]
[Termination "Firouzja2003 won by resignation"]

1. e4 {[%clk 0:03:00.9]} 1... e5 {[%clk 0:03:00]} 2. Nf3 {[%clk 0:03:00.7]} 2...
Nc6 {[%clk 0:03:00.6]} 3. Bb5 {[%clk 0:03:01]} 3... a6 {[%clk 0:03:00.3]} 4. Ba4
{[%clk 0:03:01.5]} 4... Nf6 {[%clk 0:03:00.8]} 5. O-O {[%clk 0:03:01.5]} 5...
Be7 {[%clk 0:02:58.7]} 6. Re1 {[%clk 0:03:01.7]} 6... b5 {[%clk 0:02:59.1]} 7.
Bb3 {[%clk 0:03:02.2]} 7... d6 {[%clk 0:02:59.7]} 8. c3 {[%clk 0:03:02.4]} 8...
O-O {[%clk 0:02:58.3]} 9. h3 {[%clk 0:03:02.8]} 9... Bb7 {[%clk 0:02:57.1]} 10.
d4 {[%clk 0:03:02.6]} 10... Re8 {[%clk 0:02:56.8]} 11. Nbd2 {[%clk 0:03:03.1]}
11... Nd7 {[%clk 0:02:56.6]} 12. Nf1 {[%clk 0:02:56.2]} 12... Bf6 {[%clk
0:02:49.2]} 13. Ng3 {[%clk 0:02:52]} 13... exd4 {[%clk 0:02:48.6]} 14. cxd4
{[%clk 0:02:52.9]} 14... Na5 {[%clk 0:02:49]} 15. Bc2 {[%clk 0:02:53.1]} 15...
c5 {[%clk 0:02:48.7]} 16. d5 {[%clk 0:02:52.8]} 16... Nc4 {[%clk 0:02:45.8]} 17.
Rb1 {[%clk 0:02:53.3]} 17... Nce5 {[%clk 0:02:44.8]} 18. Nxe5 {[%clk 0:02:42]}
18... Bxe5 {[%clk 0:02:44.8]} 19. Nf5 {[%clk 0:02:38.1]} 19... g6 {[%clk
0:02:14.8]} 20. f4 {[%clk 0:02:23.5]} 20... gxf5 {[%clk 0:02:06.5]} 21. fxe5
{[%clk 0:02:21]} 21... dxe5 {[%clk 0:01:57.3]} 22. exf5 {[%clk 0:01:50.5]} 22...
Nf6 {[%clk 0:01:56.8]} 23. Bg5 {[%clk 0:01:31.9]} 23... Qxd5 {[%clk 0:01:42.4]}
24. Qxd5 {[%clk 0:01:18.4]} 24... Nxd5 {[%clk 0:01:41.8]} 25. Be4 {[%clk
0:01:19.3]} 25... Rab8 {[%clk 0:01:40.1]} 26. Rbd1 {[%clk 0:01:16.1]} 26... Nb4
{[%clk 0:01:32.9]} 27. Bf6 {[%clk 0:01:03.5]} 27... Bxe4 {[%clk 0:01:04]} 28.
Rxe4 {[%clk 0:01:04.4]} 28... h5 {[%clk 0:01:04.4]} 29. Rd6 {[%clk 0:00:54.5]}
29... c4 {[%clk 0:00:47.7]} 30. Rh4 {[%clk 0:00:51.1]} 30... Nd5 {[%clk
0:00:13.2]} 31. Rxd5 {[%clk 0:00:47.9]} 31... Rb6 {[%clk 0:00:13.8]} 32. Bxe5
{[%clk 0:00:46.4]} 32... f6 {[%clk 0:00:10.7]} 33. Bd4 {[%clk 0:00:45.4]} 33...
Rc6 {[%clk 0:00:11.2]} 34. Rxh5 {[%clk 0:00:45.3]} 34... b4 {[%clk 0:00:11.2]}
35. Rd7 {[%clk 0:00:26.3]} 35... Re4 {[%clk 0:00:06.8]} 36. Rdh7 {[%clk
0:00:21]} 36... Kf8 {[%clk 0:00:07.3]} 37. Rh8+ {[%clk 0:00:20.5]} 37... Ke7
{[%clk 0:00:07.7]} 38. R5h7+ {[%clk 0:00:21]} 1-0

[Event "*** SCC Grand Prix: Titled Tuesday Blitz"]
[Site "Chess.com"]
[Date "2020.08.04"]
[Round "9"]
[White "djano"]
[Black "NotFischer"]
[Result "0-1"]
[WhiteElo "2405"]
[BlackElo "2218"]
[TimeControl "180+1"]
[EndTime "15:27:14 PDT"]
[Termination "NotFischer won by resignation"]

1. d4 {[%clk 0:03:00.9]} 1... Nf6 {[%clk 0:02:58.9]} 2. Bf4 {[%clk 0:02:59.3]}
2... d5 {[%clk 0:02:59]} 3. Nf3 {[%clk 0:02:56.2]} 3... c5 {[%clk 0:02:58.7]} 4.
e3 {[%clk 0:02:56.3]} 4... Nc6 {[%clk 0:02:58.1]} 5. Nbd2 {[%clk 0:02:56.3]}
5... cxd4 {[%clk 0:02:55.7]} 6. exd4 {[%clk 0:02:56.1]} 6... Bg4 {[%clk
0:02:54.2]} 7. c3 {[%clk 0:02:54.4]} 7... e6 {[%clk 0:02:54.3]} 8. Qa4 {[%clk
0:02:50.5]} 8... Bxf3 {[%clk 0:02:52.8]} 9. Nxf3 {[%clk 0:02:49.5]} 9... Bd6
{[%clk 0:02:50.9]} 10. Bg3 {[%clk 0:02:46.7]} 10... O-O {[%clk 0:02:34.9]} 11.
Bd3 {[%clk 0:02:46.3]} 11... Re8 {[%clk 0:02:22.3]} 12. O-O {[%clk 0:02:40.9]}
12... Bxg3 {[%clk 0:02:11.1]} 13. hxg3 {[%clk 0:02:41.8]} 13... Rc8 {[%clk
0:02:07.6]} 14. Rfe1 {[%clk 0:02:39.5]} 14... a6 {[%clk 0:02:07.1]} 15. Re2
{[%clk 0:02:32.9]} 15... h6 {[%clk 0:01:59.5]} 16. Rae1 {[%clk 0:02:31.7]} 16...
Nd7 {[%clk 0:01:58.6]} 17. Qd1 {[%clk 0:02:25.7]} 17... b5 {[%clk 0:01:50.4]}
18. Bb1 {[%clk 0:02:21.9]} 18... Na5 {[%clk 0:01:39.6]} 19. Qd3 {[%clk
0:02:21.1]} 19... Nf6 {[%clk 0:01:32]} 20. g4 {[%clk 0:02:11]} 20... Nc4 {[%clk
0:01:22.7]} 21. Ne5 {[%clk 0:01:57.6]} 21... Qb6 {[%clk 0:01:03.2]} 22. Qg3
{[%clk 0:01:38]} 22... b4 {[%clk 0:00:49.7]} 23. g5 {[%clk 0:01:37.5]} 23...
hxg5 {[%clk 0:00:49.3]} 24. Qxg5 {[%clk 0:01:36.6]} 24... bxc3 {[%clk
0:00:42.4]} 25. bxc3 {[%clk 0:01:37.5]} 25... Nd6 {[%clk 0:00:35.8]} 26. Re3
{[%clk 0:01:30.4]} 26... Nde4 {[%clk 0:00:30.8]} 27. Qh4 {[%clk 0:01:23.1]}
27... Rxc3 {[%clk 0:00:26.2]} 28. Bd3 {[%clk 0:00:59.3]} 28... Qxd4 {[%clk
0:00:24]} 29. Rh3 {[%clk 0:00:59.3]} 29... Kf8 {[%clk 0:00:18.8]} 30. Bxe4
{[%clk 0:00:51.4]} 30... Rxh3 {[%clk 0:00:17.3]} 31. Qxh3 {[%clk 0:00:44.4]}
31... Qxe5 {[%clk 0:00:13.3]} 32. Qa3+ {[%clk 0:00:44.4]} 32... Re7 {[%clk
0:00:10.6]} 33. f4 {[%clk 0:00:44.7]} 33... Qd4+ {[%clk 0:00:09.6]} 34. Kh1
{[%clk 0:00:45.2]} 34... Nxe4 {[%clk 0:00:09.9]} 35. Qxa6 {[%clk 0:00:42.6]}
35... f6 {[%clk 0:00:09.5]} 36. Rc1 {[%clk 0:00:39.8]} 36... Kf7 {[%clk
0:00:10]} 37. Qc8 {[%clk 0:00:39.3]} 37... Nf2+ {[%clk 0:00:10.3]} 38. Kh2
{[%clk 0:00:38.6]} 38... Ng4+ {[%clk 0:00:11.2]} 39. Kg3 {[%clk 0:00:37.1]}
39... f5 {[%clk 0:00:11.5]} 40. Rf1 {[%clk 0:00:27.2]} 40... Qe3+ {[%clk
0:00:11.8]} 41. Rf3 {[%clk 0:00:27.5]} 41... Qe1+ {[%clk 0:00:12.3]} 42. Kh3
{[%clk 0:00:28]} 42... Qh1+ {[%clk 0:00:12.3]} 0-1

[Event "*** SCC Grand Prix: Titled Tuesday Blitz"]
[Site "Chess.com"]
[Date "2020.08.04"]
[Round "9"]
[White "DariaVoit"]
[Black "MasterKroket"]
[Result "0-1"]
[WhiteElo "2514"]
[BlackElo "2410"]
[TimeControl "180+1"]
[EndTime "15:27:22 PDT"]
[Termination "MasterKroket won by checkmate"]

1. d4 {[%clk 0:03:00.9]} 1... Nf6 {[%clk 0:02:59.8]} 2. Nf3 {[%clk 0:03:01.4]}
2... e6 {[%clk 0:03:00]} 3. c4 {[%clk 0:03:01.8]} 3... d5 {[%clk 0:03:00.2]} 4.
g3 {[%clk 0:03:02.1]} 4... Be7 {[%clk 0:02:59.8]} 5. Bg2 {[%clk 0:03:02.5]} 5...
O-O {[%clk 0:03:00.2]} 6. Qc2 {[%clk 0:03:02]} 6... dxc4 {[%clk 0:02:59.4]} 7.
Qxc4 {[%clk 0:03:01.6]} 7... a6 {[%clk 0:02:59.7]} 8. Bf4 {[%clk 0:02:59.3]}
8... Nd5 {[%clk 0:02:57.5]} 9. Ne5 {[%clk 0:02:38.2]} 9... Nxf4 {[%clk 0:02:56]}
10. gxf4 {[%clk 0:02:37.8]} 10... Nd7 {[%clk 0:02:43.8]} 11. O-O {[%clk
0:02:32.7]} 11... Nxe5 {[%clk 0:02:41.2]} 12. fxe5 {[%clk 0:02:23.5]} 12... c5
{[%clk 0:02:34.8]} 13. dxc5 {[%clk 0:02:20.3]} 13... Qc7 {[%clk 0:02:35]} 14.
Nc3 {[%clk 0:02:07.5]} 14... Bd7 {[%clk 0:02:25.2]} 15. b4 {[%clk 0:01:58.2]}
15... Rab8 {[%clk 0:02:02.3]} 16. Rad1 {[%clk 0:01:57.2]} 16... Rfd8 {[%clk
0:01:59.8]} 17. f4 {[%clk 0:01:55.9]} 17... b6 {[%clk 0:01:53]} 18. c6 {[%clk
0:01:52.9]} 18... Be8 {[%clk 0:01:53.1]} 19. b5 {[%clk 0:01:50.6]} 19... Bc5+
{[%clk 0:01:49.2]} 20. Kh1 {[%clk 0:01:50.3]} 20... Rbc8 {[%clk 0:01:16.1]} 21.
a4 {[%clk 0:01:48.3]} 21... axb5 {[%clk 0:01:08.9]} 22. axb5 {[%clk 0:01:40.5]}
22... Ra8 {[%clk 0:01:08.4]} 23. Ne4 {[%clk 0:01:12.5]} 23... Be7 {[%clk
0:01:08.5]} 24. Ra1 {[%clk 0:01:09.1]} 24... g5 {[%clk 0:00:47.1]} 25. Rxa8
{[%clk 0:01:02.3]} 25... Rxa8 {[%clk 0:00:46.7]} 26. e3 {[%clk 0:01:00]} 26...
gxf4 {[%clk 0:00:40.9]} 27. exf4 {[%clk 0:00:59.8]} 27... Kh8 {[%clk 0:00:40.7]}
28. Rd1 {[%clk 0:00:56.6]} 28... Ra3 {[%clk 0:00:30.2]} 29. Nd6 {[%clk
0:00:54.4]} 29... Ra8 {[%clk 0:00:22.1]} 30. Be4 {[%clk 0:00:28.7]} 30... Rd8
{[%clk 0:00:14.5]} 31. Bb1 {[%clk 0:00:16.2]} 31... Bf8 {[%clk 0:00:14.5]} 32.
Qc2 {[%clk 0:00:11.2]} 32... f5 {[%clk 0:00:14]} 33. exf6 {[%clk 0:00:07.1]}
33... Rxd6 {[%clk 0:00:12.3]} 34. Rxd6 {[%clk 0:00:05.9]} 34... Bxd6 {[%clk
0:00:11.9]} 35. Qe4 {[%clk 0:00:05.6]} 35... Qf7 {[%clk 0:00:10.9]} 36. Qd4
{[%clk 0:00:04.7]} 36... Bc7 {[%clk 0:00:09.4]} 37. f5 {[%clk 0:00:04.9]} 37...
exf5 {[%clk 0:00:07.9]} 38. Bxf5 {[%clk 0:00:05.8]} 38... Qh5 {[%clk 0:00:07.4]}
39. Qe4 {[%clk 0:00:05.5]} 39... Qxh2# {[%clk 0:00:07.3]} 0-1

[Event "*** SCC Grand Prix: Titled Tuesday Blitz"]
[Site "Chess.com"]
[Date "2020.08.04"]
[Round "9"]
[White "Yoshikrov"]
[Black "ailime26"]
[Result "1-0"]
[WhiteElo "2137"]
[BlackElo "1893"]
[TimeControl "180+1"]
[EndTime "15:27:28 PDT"]
[Termination "Yoshikrov won on time"]

1. e4 {[%clk 0:03:00.9]} 1... c5 {[%clk 0:02:57.7]} 2. Nf3 {[%clk 0:03:00.8]}
2... Nc6 {[%clk 0:02:56.3]} 3. d4 {[%clk 0:03:00.8]} 3... cxd4 {[%clk
0:02:55.4]} 4. Nxd4 {[%clk 0:02:46.4]} 4... Nf6 {[%clk 0:02:53]} 5. Nc3 {[%clk
0:02:46.5]} 5... e5 {[%clk 0:02:51.8]} 6. Ndb5 {[%clk 0:02:46.4]} 6... d6 {[%clk
0:02:51.4]} 7. Bg5 {[%clk 0:02:44.8]} 7... a6 {[%clk 0:02:51]} 8. Na3 {[%clk
0:02:45.2]} 8... b5 {[%clk 0:02:50.4]} 9. Bxf6 {[%clk 0:02:43.9]} 9... gxf6
{[%clk 0:02:47]} 10. Nd5 {[%clk 0:02:44.2]} 10... f5 {[%clk 0:02:46.3]} 11. c3
{[%clk 0:02:02.4]} 11... fxe4 {[%clk 0:02:32.2]} 12. Bxb5 {[%clk 0:02:02.2]}
12... axb5 {[%clk 0:01:42.1]} 13. Nxb5 {[%clk 0:02:01.2]} 13... Kd7 {[%clk
0:01:30.8]} 14. Qg4+ {[%clk 0:01:57]} 14... Ke8 {[%clk 0:01:02.9]} 15. Nbc7+
{[%clk 0:01:52.5]} 15... Qxc7 {[%clk 0:00:59.7]} 16. Nxc7+ {[%clk 0:01:52.5]}
16... Kd8 {[%clk 0:00:59.4]} 17. Qxe4 {[%clk 0:01:28.7]} 17... Kxc7 {[%clk
0:00:57.3]} 18. O-O {[%clk 0:01:23.7]} 18... Rg8 {[%clk 0:00:55.5]} 19. Rfd1
{[%clk 0:01:19.2]} 19... Bb7 {[%clk 0:00:54.2]} 20. Qf5 {[%clk 0:01:08.7]} 20...
Rxg2+ {[%clk 0:00:33.7]} 21. Kf1 {[%clk 0:01:03.6]} 21... Rxh2 {[%clk
0:00:20.4]} 22. Qxf7+ {[%clk 0:01:03.5]} 22... Be7 {[%clk 0:00:19.6]} 23. b4
{[%clk 0:00:59.5]} 23... Rf8 {[%clk 0:00:18.6]} 24. Qg7 {[%clk 0:00:43]} 24...
Rfxf2+ {[%clk 0:00:17.5]} 25. Kg1 {[%clk 0:00:43.3]} 25... Re2 {[%clk 0:00:14]}
26. b5 {[%clk 0:00:42.4]} 26... Rhg2+ {[%clk 0:00:11.3]} 27. Qxg2 {[%clk
0:00:40.1]} 27... Rxg2+ {[%clk 0:00:10.9]} 28. Kxg2 {[%clk 0:00:41]} 28... Nd4+
{[%clk 0:00:10.6]} 29. Kf2 {[%clk 0:00:40.4]} 29... Bh4+ {[%clk 0:00:08.6]} 30.
Ke3 {[%clk 0:00:40.4]} 30... Nc2+ {[%clk 0:00:08.2]} 31. Kd3 {[%clk 0:00:41]}
31... Nxa1 {[%clk 0:00:07]} 32. Rxa1 {[%clk 0:00:41.9]} 32... Bg5 {[%clk
0:00:06]} 33. a4 {[%clk 0:00:42]} 33... Kb6 {[%clk 0:00:05.6]} 34. Kc4 {[%clk
0:00:39.3]} 34... d5+ {[%clk 0:00:05]} 35. Kb4 {[%clk 0:00:37.6]} 35... Be7+
{[%clk 0:00:04.8]} 36. Kb3 {[%clk 0:00:38.2]} 36... Ka5 {[%clk 0:00:04.6]} 37.
Rh1 {[%clk 0:00:37.9]} 37... d4 {[%clk 0:00:04.3]} 38. Rxh7 {[%clk 0:00:37.6]}
38... Bd5+ {[%clk 0:00:03.1]} 39. c4 {[%clk 0:00:38.1]} 39... Bb4 {[%clk
0:00:01.2]} 40. cxd5 {[%clk 0:00:37.7]} 40... Bc5 {[%clk 0:00:01.1]} 41. Rh6
{[%clk 0:00:36.3]} 41... Bb6 {[%clk 0:00:01]} 42. Re6 {[%clk 0:00:33.9]} 42...
d3 {[%clk 0:00:01.1]} 43. Rxe5 {[%clk 0:00:32.9]} 43... d2 {[%clk 0:00:01.1]}
44. Kc2 {[%clk 0:00:33.3]} 1-0